fUSD/lending_fUSD_20240404
["ID","MTS","AMOUNT","RATE_DAILY","PERIOD"]
[321485618,1712236247780,-150.0,0.00043386,2]
[321485619,1712236247790,-255.29102252,0.00043386,30]
[321485620,1712236247799,-150.0,0.00043395,2]
[321485621,1712236247809,-150.0,0.0004342,2]
[321485622,1712236247818,-150.0,0.00043424,2]
[321485623,1712236247827,-150.0,0.00043433,2]
[321485624,1712236247837,-165.08125156,0.00043448,3]
[321485625,1712236247846,-150.0,0.00043465,2]
[321485626,1712236247855,-150.0,0.00043483,2]
[321485627,1712236247864,-150.0,0.00043496,2]
[321485628,1712236247874,-150.0,0.00043506,2]
[321485629,1712236247884,-150.0,0.00043506,2]
[321485630,1712236247893,-1547.47,0.00043507,15]
[321485631,1712236247903,-150.0,0.0004351,2]
[321485632,1712236247912,-150.0,0.00043515,2]
[321485633,1712236247922,-500.0,0.00043536,20]
[321485634,1712236247933,-150.0,0.00043544,2]
[321485635,1712236247942,-150.0,0.00043551,2]
[321485636,1712236247952,-150.0,0.0004358,2]
[321485637,1712236247961,-150.0,0.00043582,2]
[321485638,1712236247970,-150.0,0.00043587,2]
[321485639,1712236247980,-200.0,0.00043592,15]
[321485640,1712236247989,-800.0,0.00043592,20]
[321485641,1712236247998,-500.0,0.00043592,20]
[321485642,1712236248007,-396341.71893344,0.000436,2]
[321485643,1712236248016,-150.0,0.00043603,2]
[321485644,1712236248026,-159.12958476,0.00043629,30]
[321485645,1712236248035,-1500.0,0.00043639,2]
[321485646,1712236248044,-200.0,0.00043647,15]
[321485647,1712236248054,-800.0,0.00043647,20]
[321485648,1712236248063,-500.0,0.00043647,20]
[321485649,1712236248073,-150.0,0.00043666,2]
[321485650,1712236248082,-150.0,0.00043674,2]
[321485651,1712236248092,-176.34670904,0.00043679,30]
[321485652,1712236248101,-160.34535195,0.00043679,30]
[321485653,1712236248111,-150.0,0.00043681,2]
[321485654,1712236248121,-150.0,0.00043683,2]
[321485655,1712236248131,-10000.0,0.00043695,2]
[321485656,1712236248140,-150.0,0.00043697,2]
[321485657,1712236248150,-680.45,0.000437,7]
[321485658,1712236248160,-545.83,0.000437,7]
[321485659,1712236248169,-150.0,0.00043713,2]
[321485660,1712236248182,-150.0,0.00043715,2]
[321485661,1712236248192,-152.11069391,0.0004372,30]
[321485662,1712236248202,-1006.7,0.0004372,2]
[321485663,1712236248211,-150.0,0.00043726,2]
[321485664,1712236248221,-150.0,0.0004373,2]
[321485665,1712236248231,-152.0,0.00043734,4]
[321485666,1712236248241,-150.0,0.00043734,2]
[321485667,1712236248252,-150.0,0.00043738,2]
[321485668,1712236248261,-160.34535195,0.00043742,30]
[321485669,1712236248272,-150.0,0.00043744,2]
[321485670,1712236248281,-1500.0,0.00043746,2]
[321485671,1712236248291,-1500.0,0.00043751,2]
[321485672,1712236248301,-261.16365937,0.00043751,30]
[321485673,1712236248310,-150.0,0.00043753,2]
[321485674,1712236248321,-150.0,0.00043764,2]
[321485675,1712236248330,-150.0,0.00043765,2]
[321485676,1712236248340,-150.0,0.00043768,2]
[321485677,1712236248349,-150.0,0.00043771,2]
[321485678,1712236248358,-150.0,0.00043778,2]
[321485679,1712236248367,-150.0,0.00043781,2]
[321485680,1712236248376,-150.0,0.00043783,2]
[321485681,1712236248386,-166.99392,0.00043789,4]
[321485682,1712236248396,-3000.0,0.000438,2]
[321485683,1712236248406,-536.45,0.000438,7]
[321485684,1712236248415,-3000.0,0.000438,2]
[321485685,1712236248425,-150.0,0.00043802,2]
[321485686,1712236248435,-150.0,0.00043806,2]
[321485687,1712236248444,-150.0,0.0004381,2]
[321485688,1712236248454,-150.0,0.00043815,2]
[321485689,1712236248463,-150.0,0.00043819,2]
[321485690,1712236248473,-150.0,0.00043826,2]
[321485691,1712236248482,-551.38,0.00043836,2]
[321485692,1712236248492,-150.0,0.00043837,2]
[321485693,1712236248501,-150.0,0.00043847,2]
[321485694,1712236248511,-150.0,0.00043851,2]
[321485695,1712236248519,-1500.0,0.00043854,2]
[321485696,1712236248529,-150.0,0.00043856,2]
[321485697,1712236248539,-150.0,0.00043859,2]
[321485698,1712236248548,-150.0,0.00043885,2]
[321485699,1712236248564,-3405.2481637,0.00043888,2]
[321485700,1712236248573,-732.6911149,0.00043888,2]
[321485701,1712236248582,-44963.2347358,0.00043888,2]
[321485702,1712236248590,-7236.7066599,0.0004389,2]
[321485703,1712236248601,-150.0,0.00043893,2]
[321485704,1712236248610,-1152.94654634,0.00043895,5]
[321485705,1712236248619,-441.98936024,0.00043895,4]
[321485706,1712236248629,-150.0,0.00043898,2]
[321485707,1712236248639,-150.0,0.000439,2]
[321485708,1712236248649,-150.0,0.0004391,2]
[321485709,1712236248658,-151.0,0.00043933,6]
[321485710,1712236248667,-150.0,0.00043933,2]
[321485711,1712236248679,-150.0,0.00043935,2]
[321485712,1712236248688,-444.52391945,0.00043945,30]
[321485713,1712236248697,-150.0,0.00043953,2]
[321485714,1712236248706,-159.12958476,0.00043956,30]
[321485715,1712236248715,-150.0,0.0004396,53]
[321485716,1712236248725,-150.0,0.00043975,2]
[321485717,1712236248734,-157.14751857,0.00043984,4]
[321485718,1712236248743,-187.56369189,0.00043985,4]
[321485719,1712236248752,-185.04466804,0.00043986,4]
[321485720,1712236248761,-165.37702993,0.00043987,4]
[321485721,1712236248770,-155.49738525,0.00043987,4]
[321485722,1712236248780,-450.55355827,0.00043997,2]
[321485723,1712236248789,-1889.1010096,0.00043997,2]
[321485724,1712236248798,-155.47572406,0.00043999,4]
[321485725,1712236248807,-202.05778184,0.00043999,4]
[321485726,1712236248817,-180.42978069,0.00043999,4]
[321485727,1712236248826,-214.31503332,0.00043999,4]
[321485728,1712236248835,-300.02,0.00043999,2]
[321485729,1712236248844,-878.90552074,0.00043999,2]
[321485730,1712236248854,-14370.60280252,0.00044,2]
[321485731,1712236248863,-1000.0,0.00044,9]
[321485732,1712236248872,-1019.0,0.00044,3]
[321485733,1712236248882,-608.73580176,0.00044,21]
[321485734,1712236248892,-14318.0095112,0.00044,60]
[321485735,1712236248901,-150.0,0.00044,20]
[321485736,1712236248911,-480.0,0.00044,31]
[321485737,1712236248920,-403.0,0.00044,20]
[321485738,1712236248932,-150.0,0.00044,73]
[321485739,1712236248941,-679.3110518,0.00044,45]
[321485740,1712236248950,-403.0,0.00044,20]
[321485741,1712236248959,-513.0,0.00044,31]
[321485742,1712236248968,-200.0,0.00044,20]
[321485743,1712236248978,-291.098705,0.00044,7]
[321485744,1712236248987,-448.1609,0.00044,30]
[321485745,1712236248997,-1051.69367994,0.00044027,60]
[321485746,1712236249006,-150.0,0.00044042,120]
[321485747,1712236249016,-150.0,0.00044124,2]
[321485748,1712236249025,-157.30997332,0.00044129,30]
[321485749,1712236249035,-1208.0,0.00044155,30]
[321485750,1712236249045,-501.98440804,0.00044199,30]
[321485751,1712236249054,-153.87719975,0.00044208,30]
[321485752,1712236249063,-1051.69367994,0.00044219,60]
[321485753,1712236249073,-444.52391945,0.0004422,30]
[321485754,1712236249083,-160.34535195,0.00044229,30]
[321485755,1712236249092,-150.0,0.00044327,120]
[321485756,1712236249102,-160.34535195,0.00044352,30]
[321485757,1712236249112,-155.26020619,0.00044393,30]
[321485758,1712236249121,-1244.6074,0.000444,23]
[321485759,1712236249132,-157.30997332,0.00044402,30]
[321485760,1712236249141,-152.0,0.00044419,5]
[321485761,1712236249150,-10039.14869107,0.00044444,7]
[321485762,1712236249160,-156.25,0.00044444,2]
[321485763,1712236249169,-164.11253645,0.00044548,4]
[321485764,1712236249181,-176.34670904,0.00044568,30]
[321485765,1712236249190,-153.87719975,0.00044589,30]
[321485766,1712236249199,-153.74329264,0.00044609,30]
[321485767,1712236249209,-154.06850799,0.00044609,30]
[321485768,1712236249218,-1006.7,0.00044625,2]
[321485769,1712236249227,-152.11069391,0.00044711,30]
[321485770,1712236249235,-150.50625035,0.00044718,30]
[321485771,1712236249245,-151.16400735,0.00044738,30]
[321485772,1712236249254,-261.16365937,0.00044746,30]
[321485773,1712236249263,-310.16,0.00044885,2]
[321485774,1712236249273,-871.34353157,0.0004489,10]
[321485775,1712236249282,-261.16365937,0.00044894,30]
[321485776,1712236249292,-1000.0,0.000449,7]
[321485777,1712236249301,-261.16365937,0.00044969,30]
[321485778,1712236249311,-5170.91605711,0.0004498,2]
[321485779,1712236249320,-5000.0,0.00044986,4]
[321485780,1712236249329,-150.0,0.00044989,2]
[321485781,1712236249339,-188.63847172,0.00044998,4]
[321485782,1712236249348,-2337.89532994,0.00044998,4]
[321485783,1712236249358,-407.53727278,0.00044998,4]
[321485784,1712236249367,-309.98182803,0.00044998,4]
[321485785,1712236249376,-1219.91667781,0.00044998,4]
[321485786,1712236249386,-155.69534277,0.00044999,4]
[321485787,1712236249395,-16848.22192227,0.00044999,4]
[321485788,1712236249406,-200000.0,0.00045,35]
[321485789,1712236249415,-1215.52391243,0.00045,5]
[321485790,1712236249428,-328.47719203,0.00045,4]
[321485791,1712236249437,-70876.35734598,0.00045,2]
[321485792,1712236249446,-500.0,0.00045,2]
[321485793,1712236249455,-3353.30355716,0.00045,4]
[321485794,1712236249465,-255.79029936,0.00045,60]
[321485795,1712236249474,-214.6091896,0.00045,30]
[321485796,1712236249483,-816.58978373,0.00045,30]
[321485797,1712236249492,-466.03830899,0.00045,15]
[321485798,1712236249501,-704.46813212,0.00045,30]
[321485799,1712236249511,-150.999999,0.00045,120]
[321485800,1712236249520,-157.88190132,0.00045,120]
[321485801,1712236249529,-982.0,0.00045,9]
[321485802,1712236249538,-1000.0,0.00045,3]
[321485803,1712236249548,-150.0,0.00045,85]
[321485804,1712236249558,-19412.37904521,0.00045,2]
[321485805,1712236249567,-150.0,0.00045,85]
[321485806,1712236249579,-1200.0,0.00045,46]
[321485807,1712236249588,-510.350444,0.00045,120]
[321485808,1712236249598,-150.0,0.00045,21]
[321485809,1712236249608,-155.97762983,0.00045012,30]
[321485810,1712236249619,-157.30997332,0.00045052,30]
[321485811,1712236249628,-680.45,0.000451,7]
[321485812,1712236249637,-545.83,0.000451,7]
[321485813,1712236249646,-152.0,0.00045105,6]
[321485814,1712236249656,-1164.04,0.00045156,2]
[321485815,1712236249666,-444.52391945,0.00045162,30]
[321485816,1712236249679,-536.45,0.000452,7]
[321485817,1712236249688,-155.97762983,0.00045276,30]
[321485818,1712236249698,-154.25,0.000454,5]
[321485819,1712236249707,-154.25,0.000454,5]
[321485820,1712236249716,-154.25,0.000454,5]
[321485821,1712236249725,-154.25,0.000454,5]
[321485822,1712236249734,-154.25,0.000454,5]
[321485823,1712236249744,-154.25,0.000454,5]
[321485824,1712236249754,-154.25,0.000454,5]
[321485825,1712236249764,-154.25,0.000454,5]
[321485826,1712236249773,-154.25,0.000454,5]
[321485827,1712236249782,-154.25,0.000454,5]
[321485828,1712236249791,-154.25,0.000454,5]
[321485829,1712236249801,-154.25,0.000454,5]
[321485830,1712236249810,-154.25,0.000454,5]
[321485831,1712236249820,-154.25,0.000454,5]
[321485832,1712236249829,-154.25,0.000454,5]
[321485833,1712236249839,-154.25,0.000454,5]
[321485834,1712236249849,-154.25,0.000454,5]
[321485835,1712236249859,-154.25,0.000454,5]
[321485836,1712236249869,-154.25,0.000454,5]
[321485837,1712236249879,-154.25,0.000454,5]
[321485838,1712236249889,-154.25,0.000454,5]
[321485839,1712236249899,-7350.52,0.000454,5]
[321485840,1712236249909,-7350.52,0.000454,5]
[321485841,1712236249918,-7350.52,0.000454,5]
[321485842,1712236249930,-7350.52,0.000454,5]
[321485843,1712236249940,-7350.52,0.000454,5]
[321485844,1712236249949,-7350.52,0.000454,5]
[321485845,1712236249958,-7350.52,0.000454,5]
[321485846,1712236249967,-7350.52,0.000454,5]
[321485847,1712236249976,-7350.52,0.000454,5]
[321485848,1712236249986,-7350.52,0.000454,5]
[321485849,1712236249996,-7350.52,0.000454,5]
[321485850,1712236250005,-7350.52,0.000454,5]
[321485851,1712236250015,-7350.52,0.000454,5]
[321485852,1712236250024,-7350.52,0.000454,5]
[321485853,1712236250034,-7350.52,0.000454,5]
[321485854,1712236250043,-7350.52,0.000454,5]
[321485855,1712236250053,-7350.52,0.000454,5]
[321485856,1712236250063,-7350.52,0.000454,5]
[321485857,1712236250072,-7350.52,0.000454,5]
[321485858,1712236250081,-7350.52,0.000454,5]
[321485859,1712236250090,-150.0,0.000455,8]
[321485860,1712236250100,-1006.7,0.0004553,2]
[321485861,1712236250109,-150.0,0.00045584,120]
[321485862,1712236250118,-155.97762983,0.00045589,30]
[321485863,1712236250128,-155.26020619,0.00045595,30]
[321485864,1712236250137,-176.66265932,0.0004565,30]
[321485865,1712236250146,-1244.6074,0.0004565,29]
[321485866,1712236250156,-159.12958476,0.00045654,30]
[321485867,1712236250165,-153.74329264,0.00045675,30]
[321485868,1712236250177,-150.0,0.00045691,120]
[321485869,1712236250186,-150.0,0.00045713,120]
[321485870,1712236250195,-150.0,0.0004577,120]
[321485871,1712236250203,-152.0,0.0004579,7]
[321485872,1712236250212,-1000.0,0.000458,7]
[321485873,1712236250222,-444.52391945,0.00045811,30]
[321485874,1712236250232,-150.0,0.00045854,2]
[321485875,1712236250241,-156.25,0.0004589,2]
[321485876,1712236250251,-16077.5251187,0.000459,120]
[321485877,1712236250260,-157.30997332,0.00045944,30]
[321485878,1712236250270,-444.52391945,0.00045956,30]
[321485879,1712236250279,-4349.4463339,0.00045968,2]
[321485880,1712236250289,-935.8497621,0.00045968,2]
[321485881,1712236250298,-57053.6831397,0.00045968,2]
[321485882,1712236250307,-2397.0733213,0.00045968,2]
[321485883,1712236250317,-9182.6304575,0.00045968,2]
[321485884,1712236250328,-150.0,0.00045983,120]
[321485885,1712236250337,-160.34535195,0.00045987,30]
[321485886,1712236250346,-67804.39559297,0.00046,36]
[321485887,1712236251013,-25215.83285531,0.00046,36]
[321485888,1712236251165,-151.2,0.00041,2]
[321485889,1712236251175,-516.8,0.00046,36]
[321485890,1712236251581,-151.2,0.00041,2]
[321485891,1712236251591,-151.2,0.00041,2]
[321485892,1712236251601,-151.2,0.00041,2]
[321485893,1712236251611,-49.14329374,0.00041,2]
[321485894,1712236251622,-102.05670626,0.00041,2]
[321485895,1712236251632,-151.2,0.00041,2]
[321485896,1712236251642,-151.2,0.00041,2]
[321485897,1712236251653,-151.2,0.00041,2]
[321485898,1712236251663,-151.2,0.00041,2]
[321485899,1712236251672,-151.2,0.00041,2]
[321485900,1712236251681,-151.2,0.00041,2]
[321485901,1712236251690,-151.2,0.00041,2]
[321485902,1712236251699,-151.2,0.00041,2]
[321485903,1712236251709,-738.784761,0.00046,36]
[321485904,1712236251720,-356.56969988,0.00046,36]
[321485905,1712236251740,-37554.90461253,0.00046,36]
[321485906,1712236251784,-151.2,0.00041,2]
[321485907,1712236251794,-504.9555,0.00046,36]
[321485908,1712236252770,-151.2,0.00041,2]
[321485909,1712236252780,-151.2,0.00041,2]
[321485910,1712236252789,-151.2,0.00041,2]
[321485911,1712236252799,-151.2,0.00041,2]
[321485912,1712236252809,-151.2,0.00041,2]
[321485913,1712236252818,-151.2,0.00041,2]
[321485914,1712236252827,-151.2,0.00041,2]
[321485915,1712236252837,-151.2,0.00041,2]
[321485916,1712236252847,-151.2,0.00041,2]
[321485917,1712236252857,-151.2,0.00041,2]
[321485918,1712236252867,-151.2,0.00041,2]
[321485919,1712236252877,-151.2,0.00041,2]
[321485920,1712236252886,-151.2,0.00041,2]
[321485921,1712236252896,-151.2,0.00041,2]
[321485922,1712236252906,-151.2,0.00041,2]
[321485923,1712236252916,-151.2,0.00041,2]
[321485924,1712236252927,-134.3325,0.00041,2]
[321485925,1712236252938,-16.8675,0.00041,2]
[321485926,1712236252947,-1384.30968292,0.00046,36]
[321485927,1712236252959,-1914.552,0.00046,36]
[321485928,1712236252970,-374.37000002,0.00046,36]
[321485929,1712236252984,-291.3,0.00046,36]
[321485930,1712236253003,-329.91915522,0.00046,36]
[321485931,1712236253015,-60000.0,0.00046,36]
[321485932,1712236253034,-151.2,0.00041,2]
[321485933,1712236253043,-3013.30614015,0.00046,36]
[321485934,1712236253053,-155.01150722,0.00046,3]
[321485935,1712236253063,-1616.04313595,0.00046,4]
[321485936,1712236253073,-150.0,0.00046,2]
[321485937,1712236253083,-150.0,0.00046,96]
[321485938,1712236253093,-16779.09180532,0.00046,120]
[321485939,1712236253102,-42827.73709516,0.00046,45]
[321485940,1712236253123,-3773.16869707,0.00046,45]
[321485941,1712236253148,-9057.51445266,0.00046,45]
[321485942,1712236253161,-845.49495239,0.00046,45]
[321485943,1712236253173,-42496.08480272,0.00046,45]
[321485944,1712236253185,-200.0,0.00046,96]
[321485945,1712236253195,-1200.0,0.00046,47]
[321485946,1712236253205,-150.0,0.00046,22]
[321485947,1712236253214,-2171.42339448,0.00046,2]
[321485948,1712236253223,-10000.0,0.00046,2]
[321485949,1712236253233,-150.0,0.00046,8]
[321485950,1712236253243,-150.0,0.00046002,120]
[321485951,1712236253253,-155.67554625,0.0004601,30]
[321485952,1712236253262,-154.06850799,0.00046058,30]
[321485953,1712236253272,-160.34535195,0.00046058,30]
[321485954,1712236253282,-444.52391945,0.00046126,30]
[321485955,1712236253291,-448.1609,0.000462,30]
[321485956,1712236253301,-1547.47,0.00046247,15]
[321485957,1712236253310,-155.26020619,0.00046288,30]
[321485958,1712236253319,-444.52391945,0.00046309,30]
[321485959,1712236253329,-160.34535195,0.00046311,30]
[321485960,1712236253338,-143058.20899056,0.000464,2]
[321485961,1712236253347,-160.34535195,0.00046435,30]
[321485962,1712236253714,-1006.7,0.00046435,2]
[321485963,1712236253725,-155.97762983,0.00046437,30]
[321485964,1712236253734,-155.26020619,0.00046459,30]
[321485965,1712236253745,-153.87719975,0.00046474,30]
[321485966,1712236253755,-152.0,0.00046476,8]
[321485967,1712236253765,-310.16,0.0004648,2]
[321485968,1712236253774,-155.26020619,0.00046483,30]
[321485969,1712236253784,-150.0,0.000465,8]
[321485970,1712236253793,-150.0,0.0004652,120]
[321485971,1712236253803,-202.23,0.00046527,120]
[321485972,1712236253813,-150.0,0.0004655,59]
[321485973,1712236253822,-1698.38451414,0.000466,2]
[321485974,1712236253918,-9.94440406,0.00041,2]
[321485975,1712236253934,-141.25559594,0.00041,2]
[321485976,1712236253944,-1301.61548586,0.000466,2]
[321485977,1712236253956,-536.45,0.000466,7]
[321485978,1712236253966,-3000.0,0.000466,2]
[321485979,1712236253975,-150.50625035,0.00046632,30]
[321485980,1712236253986,-155.97762983,0.00046643,30]
[321485981,1712236253996,-160.34535195,0.00046645,30]
[321485982,1712236254007,-150.73638966,0.00046652,30]
[321485983,1712236254017,-444.52391945,0.00046661,30]
[321485984,1712236254027,-300.0,0.000467,2]
[321485985,1712236254038,-150.0,0.0004672,2]
[321485986,1712236254048,-153.87719975,0.00046806,30]
[321485987,1712236254058,-150.0,0.00046813,120]
[321485988,1712236254067,-150.50625035,0.00046813,30]
[321485989,1712236254076,-153.82631401,0.00046814,30]
[321485990,1712236254087,-150.0,0.00046821,120]
[321485991,1712236254096,-160.28413083,0.00046822,30]
[321485992,1712236254107,-300.0,0.000469,2]
[321485993,1712236254116,-5293.6445041,0.00046968,2]
[321485994,1712236254126,-1139.0084092,0.00046968,2]
[321485995,1712236254136,-69144.1315436,0.00046968,2]
[321485996,1712236254146,-2905.0456329,0.00046968,2]
[321485997,1712236254156,-11128.554255,0.00046968,2]
[321485998,1712236254165,-200000.0,0.00047,37]
[321485999,1712236254175,-200.0,0.00047,108]
[321486000,1712236254187,-1200.0,0.00047,48]
[321486001,1712236254197,-288.0,0.00047,24]
[321486002,1712236254206,-150.0,0.00047,9]
[321486003,1712236254217,-151.0,0.00047,14]
[321486004,1712236254227,-151.0,0.00047,14]
[321486005,1712236254237,-255.29102252,0.00047063,30]
[321486006,1712236254247,-150.0,0.0004714,120]
[321486007,1712236254258,-159.12958476,0.00047143,30]
[321486008,1712236254268,-152.0,0.00047161,9]
[321486009,1712236254280,-155.26020619,0.00047256,30]
[321486010,1712236254290,-160.34535195,0.00047283,30]
[321486011,1712236254300,-300.0,0.000473,2]
[321486012,1712236254310,-155.54109468,0.00047318,30]
[321486013,1712236254319,-1006.7,0.0004734,2]
[321486014,1712236254329,-160.34535195,0.00047341,30]
[321486015,1712236254339,-1033.5450067,0.000474,5]
[321486016,1712236254349,-1164.04,0.0004742,2]
[321486017,1712236254359,-154.06850799,0.00047482,30]
[321486018,1712236254369,-299.99999901,0.000475,2]
[321486019,1712236254379,-150.0,0.000475,9]
[321486020,1712236254389,-154.06850799,0.00047567,30]
[321486021,1712236254398,-255.29102252,0.00047573,30]
[321486022,1712236254408,-155.97762983,0.00047573,30]
[321486023,1712236254418,-150.0,0.00047585,2]
[321486024,1712236254429,-5135.64403132,0.000476,2]
[321486025,1712236254439,-444.52391945,0.00047608,30]
[321486026,1712236254448,-150.0,0.00047633,120]
[321486027,1712236254458,-154.06850799,0.00047673,30]
[321486028,1712236254467,-300.0,0.000477,2]
[321486029,1712236254476,-152.11069391,0.0004776,30]
[321486030,1712236254486,-261.16365937,0.00047816,30]
[321486031,1712236254495,-152.0,0.00047847,10]
[321486032,1712236254504,-4779.78080044,0.000479,30]
[321486033,1712236254514,-200.0,0.000479,2]
[321486034,1712236254523,-152.36417668,0.00047912,30]
[321486035,1712236254532,-255.29102252,0.00047934,30]
[321486036,1712236254541,-100000.0,0.0004794,7]
[321486037,1712236254551,-551.38,0.00047945,2]
[321486038,1712236254565,-261.16365937,0.00047981,30]
[321486039,1712236254574,-200000.0,0.00048,38]
[321486040,1712236254584,-623.26028908,0.00048,120]
[321486041,1712236254595,-3706.09151752,0.00048,2]
[321486042,1712236254604,-150.0,0.00048,30]
[321486043,1712236254614,-2205.0,0.00048,4]
[321486044,1712236254623,-890.0,0.00048,15]
[321486045,1712236254634,-1200.0,0.00048,49]
[321486046,1712236254644,-151.0,0.00048,120]
[321486047,1712236254653,-392.369205,0.00048,25]
[321486048,1712236254663,-150.0,0.00048,9]
[321486049,1712236254672,-255.29102252,0.00048011,30]
[321486050,1712236254682,-150.0,0.00048027,120]
[321486051,1712236254693,-160.34535195,0.00048062,30]
[321486052,1712236254703,-255.29102252,0.00048067,30]
[321486053,1712236254713,-310.16,0.00048075,2]
[321486054,1712236254724,-300.0,0.000481,2]
[321486055,1712236254733,-36231.07542286,0.00048119,7]
[321486056,1712236254743,-3066.59144822,0.00048147,44]
[321486057,1712236254753,-708.53,0.00048206,120]
[321486058,1712236254763,-261.16365937,0.00048217,30]
[321486059,1712236254773,-500.0,0.00048218,30]
[321486060,1712236254782,-1200.0,0.00048218,30]
[321486061,1712236254791,-1006.7,0.00048245,2]
[321486062,1712236254800,-155.97762983,0.00048291,30]
[321486063,1712236254810,-300.0,0.000483,2]
[321486064,1712236254820,-2100.0,0.00048401,30]
[321486065,1712236254830,-152.11069391,0.00048406,30]
[321486066,1712236254839,-150.0,0.0004845,2]
[321486067,1712236254849,-444.52391945,0.00048469,30]
[321486068,1712236254858,-5519.61994281,0.00048475,2]
[321486069,1712236254867,-261.16365937,0.00048479,30]
[321486070,1712236254877,-1200.0,0.00048492,30]
[321486071,1712236254886,-150.0,0.000485,9]
[321486072,1712236254896,-160.34535195,0.00048506,30]
[321486073,1712236254906,-5859.81687495,0.0004851,5]
[321486074,1712236254916,-150.0,0.00048526,120]
[321486075,1712236254931,-152.0,0.00048532,11]
[321486076,1712236254942,-444.52391945,0.00048535,30]
[321486077,1712236254952,-155.26020619,0.00048585,30]
[321486078,1712236254963,-153.45332323,0.00048642,30]
[321486079,1712236254975,-151.0,0.00048685,120]
[321486080,1712236254985,-19896.398039,0.000487,2]
[321486081,1712236254996,-16773.18574315,0.000487,2]
[321486082,1712236255007,-300.0,0.000487,2]
[321486083,1712236255018,-1436.0,0.000487,117]
[321486084,1712236255029,-500.0,0.00048766,30]
[321486085,1712236255039,-6237.8426742,0.00048834,2]
[321486086,1712236255049,-1342.1670563,0.00048834,2]
[321486087,1712236255060,-81234.5799475,0.00048834,2]
[321486088,1712236255070,-3413.0179445,0.00048834,2]
[321486089,1712236255081,-13074.4780526,0.00048834,2]
[321486090,1712236255091,-155.26020619,0.00048852,30]
[321486091,1712236255102,-7182.0408444,0.00048867,2]
[321486092,1712236255113,-8126.2390146,0.00048867,2]
[321486093,1712236255124,-1545.3257034,0.00048867,2]
[321486094,1712236255134,-1748.4843506,0.00048867,2]
[321486095,1712236255145,-93325.0283514,0.00048867,2]
[321486096,1712236255155,-105415.4767553,0.00048867,2]
[321486097,1712236255165,-3920.9902561,0.00048867,2]
[321486098,1712236255176,-4428.9625678,0.00048867,2]
[321486099,1712236255187,-15020.4018501,0.00048867,2]
[321486100,1712236255197,-16966.3256476,0.00048867,2]
[321486101,1712236255208,-150.50625035,0.0004888,30]
[321486102,1712236255219,-411370.39251621,0.000489,2]
[321486103,1712236255239,-503.998,0.000489,2]
[321486104,1712236255986,-150.0,0.00026078,2]
[321486105,1712236255997,-415.28,0.00026078,2]
[321486106,1712236256007,-519.43,0.00026178,2]
[321486107,1712236256017,-121.79187584,0.00038989,4]
[321486108,1712236256046,-4943.09655432,0.00038989,4]
[321486109,1712236256056,-2852.85829333,0.00038989,4]
[321486110,1712236256161,-151.2,0.00041,2]
[321486111,1712236256170,-151.2,0.00041,2]
[321486112,1712236256181,-151.2,0.00041,2]
[321486113,1712236256190,-151.2,0.00041,2]
[321486114,1712236256200,-151.2,0.00041,2]
[321486115,1712236256210,-151.2,0.00041,2]
[321486116,1712236256220,-151.2,0.00041,2]
[321486117,1712236256229,-151.2,0.00041,2]